Cogmind - Beta 13 @@@ ROGUE MODE // 2024.03.31 @ 15:30:01 Player: f_ Result: Self-destructed Performance ------------- Evolutions (2) 1000 Regions Visited (6) 1200 Robots Destroyed (35) 175 Value Destroyed (1260) 1260 Prototype IDs (29) 580 Alien Tech Used (0) 0 Bonus (500) 500 TOTAL SCORE: 4715 Bonus ------- Entered Garrisons 200 Aligned with FarCom 300 Cogmind --------- Core Integrity 276/550 Matter 300/300 Energy 100/100 System Corruption 1% Temperature Cool (0) Movement Core (1700) Ox33 Location -8/Garrison Parts ------- > --- POWER (1) -------- (None) > --- PROPULSION (2) --- (None) > --- UTILITY (6) ------ Huge Storage Unit Improved Medium Armor Plating Improved Medium Armor Plating Hacking Suite Supersonic Drone Bay (0/1) > --- WEAPON (2) ------- Great Maul Katana > --- INVENTORY (25) --- Improved Ion Engine Light Treads Xenon Bombardment Thruster Xenon Bombardment Thruster Xenon Bombardment Thruster Xenon Bombardment Thruster Spread Laser Pulse Rifle Beam Cannon Flak Cannon Grenade Launcher Datajack Flail Peak State ------------ > --- POWER ------------ Light Nuclear Core > --- PROPULSION ------- Wheel Armored Wheel > --- UTILITY ---------- Huge Storage Unit Particle Charger Improved Medium Armor Plating Improved Medium Armor Plating Hacking Suite Supersonic Drone Bay > --- WEAPON ----------- Pulse Rifle Great Maul > --- INVENTORY -------- Improved Ion Engine Wheel Xenon Bombardment Thruster Xenon Bombardment Thruster Xenon Bombardment Thruster Xenon Bombardment Thruster Improved Medium Armor Plating Improved Medium Armor Plating Spread Laser Beam Cannon Flak Cannon Grenade Launcher Datajack Flail Katana [Rating: 39] Favorites ----------- Power Ion Engine Engine Ion Engine Power Core Light Nuclear Core Propulsion Wheel Leg Aluminum Leg Wheel Wheel Utility Hacking Suite Device Particle Charger Storage Huge Storage Unit Hackware Hacking Suite Protection Improved Medium Armor Plating Weapon Beam Cannon Energy Gun Pulse Rifle Energy Cannon Beam Cannon Ballistic Gun Shotgun Launcher Grenade Launcher Impact Weapon Great Maul Slashing Weapon Katana Build | -11 -10 -10 -10 -9 -8 -8 ------- Run | Yrd Mat Min Exi Min Mat Gar Slots Evolved 4 | . . . . . 4 . Power . | . . . . . . . Propulsion . | . . . . . . . Utility 4 | . . . . . 4 . Weapon . | . . . . . . . Parts Attached 46 | 6 7 4 2 4 17 6 Power 4 | 1 2 . . . 1 . Engine 3 | 1 2 . . . . . Core 1 | . . . . . 1 . Reactor . | . . . . . . . Propulsion 7 | 2 . 1 . 2 1 1 Treads . | . . . . . . . Leg 1 | . . 1 . . . . Wheel 6 | 2 . . . 2 1 1 Hover . | . . . . . . . Flight . | . . . . . . . Utility 18 | 1 1 1 2 2 8 3 Device 7 | . . 1 1 1 3 1 Storage 5 | 1 . . 1 1 2 . Processor . | . . . . . . . Hackware 1 | . 1 . . . . . Protection 5 | . . . . . 3 2 Artifact . | . . . . . . . Weapon 17 | 2 4 2 . . 7 2 Energy Gun 5 | 1 2 . . . 2 . Energy Cannon 5 | . 2 1 . . 2 . Ballistic Gun 3 | 1 . . . . 2 . Ballistic Cannon . | . . . . . . . Launcher 1 | . . 1 . . . . Special Weapon . | . . . . . . . Impact Weapon 1 | . . . . . . 1 Slashing Weapon 2 | . . . . . 1 1 Piercing Weapon . | . . . . . . . Special Melee Weapon . | . . . . . . . Unidentified Prototypes . | . . . . . . . Parts Lost 14 | . 5 1 . . 1 7 Power 3 | . 2 . . . . 1 Propulsion 5 | . 1 1 . . . 3 Utility 4 | . . . . . 1 3 Weapon 2 | . 2 . . . . . Highest Loss Streak 6 | . 2 1 . . 1 6 To Critical Strikes . | . . . . . . . Average Slot Usage (%) 80 | . 90 67 78 95 85 71 Engine 10 | . 11 14 14 14 7 . Leg 3 | . . 3 14 4 . . Wheel 12 | . 26 . . 18 18 10 Device 5 | . . . 6 . 9 11 Storage 10 | . 14 6 1 13 14 9 Hackware 11 | . 12 14 14 14 9 9 Protection 3 | . . . . . 6 10 Energy Gun 6 | . 11 6 . . 10 6 Energy Cannon 7 | . 11 7 14 14 2 2 Ballistic Gun 1 | . 1 . . . 4 . Launcher 6 | . . 14 14 14 . . Naked Turns . | . . . . . . . Heaviest Build 132 | 12 15 16 21 21 132 109 Greatest Support 26 | 26 26 10 10 20 22 22 Greatest Overweight (x) 10 | . 1 5 2 2 5 10 Average Overweight (x) 2 | . . 2 1 1 3 8 Largest Inventory Capacity 25 | 8 8 8 10 10 25 25 Average Capacity 13 | 6 8 6 5 9 21 25 Most Carried 20 | 3 7 8 6 10 20 15 Average Carried 8 | . 3 6 5 7 12 14 Final Capacity 25 | 8 8 5 10 10 25 25 Final Carried 15 | . 6 5 6 10 15 13 Class Distribution -------------------- 100% | Mutant Dominant Class ---------------- Mutant | -10/Materials Mutant | -10/Mines Mutant | -10/Exiles Mutant | -9/Mines Mutant | -8/Materials Mutant | -8/Garrison Resources | -11 -10 -10 -10 -9 -8 -8 ----------- Run | Yrd Mat Min Exi Min Mat Gar Matter Collected 792 | 67 265 83 . 80 190 107 Remotely . | . . . . . . . Salvage Created 1172 | . 519 163 . 28 329 133 Parts 71 | . 35 8 . 6 13 9 Haulers Intercepted 1 | . 1 . . . . . Recyclers Shooed 1 | . 1 . . . . . Parts Field Recycled . | . . . . . . . Retrieved Matter . | . . . . . . . Parts Self-Destructed . | . . . . . . . Prevented . | . . . . . . . Kills | -11 -10 -10 -10 -9 -8 -8 ------- Run | Yrd Mat Min Exi Min Mat Gar Combat Hostiles Destroyed 31 | . 15 4 . . 7 5 Melee 5 | . . . . . 1 4 Guns 11 | . 6 . . . 5 . Cannons 10 | . 9 . . . 1 . AOE 4 | . . 4 . . . . Classes Destroyed 7 | . 4 1 . 1 1 . Builder 1 | . . . . 1 . . Hauler 1 | . 1 . . . . . Recycler 1 | . . 1 . . . . Operator 1 | . 1 . . . . . Swarmer 8 | . 6 . . . . 2 Grunt 18 | . 9 4 . . 5 . Sentry 5 | . . . . . 2 3 Best Kill Streak 3 | . 3 2 . 1 2 3 Combat Bots Only 3 | . 3 2 . . 2 3 Max Kills in Single Turn 2 | . 1 2 . 1 1 1 Gunslinging . | . . . . . . . Exploded 2 | . . 2 . . . . Melee 1 | . . . . . 1 1 Uniques/NPCs Destroyed . | . . . . . . . Combat | -11 -10 -10 -10 -9 -8 -8 -------- Run | Yrd Mat Min Exi Min Mat Gar Hostile Shots Fired 252 | . 76 9 . . 52 115 Missed 60 | . 25 5 . . 13 17 Damage Taken 2377 | . 663 63 . . 512 1139 Core 454 | . 165 15 . . 108 166 Absorbed by Shields 41 | . . . . . . 41 Core Remaining (%) 64 | 100 . . . 28 . . Volleys Fired 101 | . 59 7 . 5 27 3 Largest 2 | . 2 1 . 1 2 2 Hottest 123 | . 110 60 . 60 123 123 Shots Fired 145 | . 88 7 . 5 39 6 Gun 67 | . 39 . . . 25 3 Cannon 73 | . 49 2 . 5 14 3 Launcher 5 | . . 5 . . . . Special . | . . . . . . . Kinetic 8 | . 3 . . . 5 . Thermal 132 | . 85 2 . 5 34 6 Explosive 5 | . . 5 . . . . Electromagnetic . | . . . . . . . Robot Hit Streak 12 | . 8 4 . 3 12 8 Robot Miss Streak 4 | . 4 1 . 1 2 . Penetration Max . | . . . . . . . Secondary Targets . | . . . . . . . Shots Hit Robots 116 | . 53 3 . 3 31 26 Core Hits 53 | . 25 8 . 1 14 5 Critical Kills 1 | . . . . . . 1 Critical Parts Destroyed 1 | . . . . . . 1 Critical Strikes 5 | . 3 . . . . 2 Burn 3 | . 3 . . . . . Smash 2 | . . . . . . 2 Melee Attacks 29 | . . . . . 2 27 Impact 20 | . . . . . . 20 Slashing 9 | . . . . . 2 7 Piercing . | . . . . . . . Sneak Attacks . | . . . . . . . Combat Hostiles . | . . . . . . . Follow-up Attacks . | . . . . . . . Damage Inflicted 2485 | . 776 305 . 70 593 741 Guns 724 | . 290 . . . 376 58 Cannons 797 | . 486 34 . 70 148 59 Explosions 271 | . . 271 . . . . Melee 693 | . . . . . 69 624 Ramming . | . . . . . . . Kinetic 72 | . 15 . . . 57 . Thermal 1449 | . 761 34 . 70 467 117 Explosive 271 | . . 271 . . . . Electromagnetic . | . . . . . . . Impact 496 | . . . . . . 496 Slashing 197 | . . . . . 69 128 Piercing . | . . . . . . . Highest Corruption 2 | . 2 2 2 2 1 1 Average Corruption 1 | . 1 2 2 2 1 1 Corruption Purged . | . . . . . . . Corruption Blocked . | . . . . . . . Effects 34 | . 6 11 6 6 3 2 Message Errors 11 | . . 4 3 2 1 1 Matter Fused 8 | . 3 . 3 2 . . Heat Flow Errors 5 | . 1 3 . . 1 . Energy Discharges 4 | . . 1 . 2 1 . Data Loss (minor) 2 | . . 2 . . . . Data Loss (major) 2 | . 1 1 . . . . Alerts 1 | . . . . . . 1 Weapon Failures 1 | . 1 . . . . . Overload Shots . | . . . . . . . Overflow Damage 47 | . 5 . . . . 42 Projectiles 5 | . 5 . . . . . Explosions . | . . . . . . . Melee 42 | . . . . . . 42 Knockbacks . | . . . . . . . Impact . | . . . . . . . Kinetic . | . . . . . . . Secondary . | . . . . . . . Self-Inflicted Damage 9 | . . 9 . . . . Shots 2 | . . 2 . . . . Rammed . | . . . . . . . Targets Rammed . | . . . . . . . Kicked . | . . . . . . . Crushed . | . . . . . . . Highest Temperature 502 | . 393 270 . 60 502 223 Average Temperature 132 | . 119 97 . 28 187 116 Received Heat Transfer 759 | . 228 36 . . 234 261 Effects 9 | . . . . . 6 3 Shutdowns 2 | . . . . . 2 . Energy Bleed 2 | . . . . . 2 . Interference 4 | . . . . . 1 3 Matter Decay 1 | . . . . . 1 . Siege Activations . | . . . . . . . Robots Corrupted . | . . . . . . . Combat Hostiles . | . . . . . . . Parts Fried 1 | . . . . . . 1 Impact Corruptions 2 | . . . . . . 2 Robots Melted . | . . . . . . . Combat Hostiles . | . . . . . . . Parts Melted 4 | . 3 . . . 1 . Heat Transferred 3291 | . 2037 74 . 148 925 107 Parts Sabotaged . | . . . . . . . Parts Stolen . | . . . . . . . Parts Stripped . | . . . . . . . Power Chain Reactions . | . . . . . . . Alert | -11 -10 -10 -10 -9 -8 -8 ------- Run | Yrd Mat Min Exi Min Mat Gar Peak Influence 238 | . 238 79 . 5 151 145 Initial 18 | . . . . . 1 18 Average 52 | . 105 65 . 3 34 52 Maximum Alert Level 1 | . 1 . . . . . Low Security (%) 96 | 100 80 100 . 100 100 100 Level 1 3 | . 19 . . . . . Level 2 . | . . . . . . . Level 3 . | . . . . . . . Level 4 . | . . . . . . . Level 5 . | . . . . . . . High Security . | . . . . . . . Max Security . | . . . . . . . Squads Dispatched 5 | . 2 . . . 3 . Investigation 4 | . 2 . . . 2 . Extermination . | . . . . . . . Reinforcement 1 | . . . . . 1 . Assault . | . . . . . . . Garrison . | . . . . . . . Intercept . | . . . . . . . Searches Triggered . | . . . . . . . Construction Impeded . | . . . . . . . Haulers Reinforced . | . . . . . . . Active Scanning Responses . | . . . . . . . Cargo Convoy Interrupts . | . . . . . . . Stealth | -11 -10 -10 -10 -9 -8 -8 --------- Run | Yrd Mat Min Exi Min Mat Gar Distress Signals 2 | . . . . . 2 . Communications Jammed . | . . . . . . . Distress Signals . | . . . . . . . Times Spotted 52 | . 17 4 . . 18 13 Peak Tracking Total 8 | . 4 2 . . 8 5 Tactical Retreats 1 | . 1 . . . . . Traps | -11 -10 -10 -10 -9 -8 -8 ------- Run | Yrd Mat Min Exi Min Mat Gar Traps Triggered 7 | . 3 . . . 1 3 Indirectly . | . . . . . . . Trap Hack Attempts . | . . . . . . . Triggered . | . . . . . . . Disarmed . | . . . . . . . Reprogrammed . | . . . . . . . Reused . | . . . . . . . Traps Extracted . | . . . . . . . Installed . | . . . . . . . Triggered . | . . . . . . . Machines | -11 -10 -10 -10 -9 -8 -8 ---------- Run | Yrd Mat Min Exi Min Mat Gar Machines Disabled 3 | . 2 . . . . 1 Max in Single Turn 1 | . 1 . . . . 1 Garrison Relay 1 | . . . . . . 1 Machines Repaired . | . . . . . . . Machines Dismantled . | . . . . . . . Machines Sabotaged . | . . . . . . . Overloaded Fab Kills . | . . . . . . . Hacking | -11 -10 -10 -10 -9 -8 -8 --------- Run | Yrd Mat Min Exi Min Mat Gar Machines Accessed 16 | . 5 1 2 . 8 . Terminals 12 | . 5 . . . 7 . Fabricators . | . . . . . . . Repair Stations . | . . . . . . . Recycling Units . | . . . . . . . Scanalyzers . | . . . . . . . Garrison Access 1 | . . . . . 1 . Total Hacks 40 | . 18 1 2 . 19 . Successful 15 | . 5 1 2 . 7 . Failed 25 | . 13 . . . 12 . Catastrophic 8 | . 3 . . . 5 . Database Lockouts . | . . . . . . . Manual 36 | . 18 . 1 . 17 . Terminals 36 | . 18 . . . 18 . Fabricators . | . . . . . . . Repair Stations . | . . . . . . . Recycling Units . | . . . . . . . Scanalyzers . | . . . . . . . Garrison Access 1 | . . . . . 1 . Terminal Hacks 14 | . 5 1 2 . 6 . Record 1 | . . . 1 . . . Robot Analysis 1 | . . . . . 1 . Prototype ID Bank 3 | . 1 . . . 2 . Open Door 1 | . . 1 . . . . Alert Level 4 | . 2 . . . 2 . Unreport Threat 2 | . 2 . . . . . Recall Investigation 1 | . . . . . 1 . Derelict Proto ID Bank 1 | . . . 1 . . . Fabricator Hacks . | . . . . . . . Repair Station Hacks . | . . . . . . . Recycling Unit Hacks . | . . . . . . . Scanalyzer . | . . . . . . . Garrison Access Hacks 1 | . . . . . 1 . Unlock Access 1 | . . . . . 1 . Unauthorized Hacks . | . . . . . . . Terminals . | . . . . . . . Fabricators . | . . . . . . . Repair Stations . | . . . . . . . Recycling Units . | . . . . . . . Scanalyzers . | . . . . . . . Garrison Access . | . . . . . . . Data Cores Recovered . | . . . . . . . Used . | . . . . . . . Hacking Detections 12 | . 5 . . . 7 . Full Trace Events 8 | . 4 . . . 4 . Feedback Events . | . . . . . . . Feedback Blocked . | . . . . . . . Robot Schematics Acquired . | . . . . . . . Robots Built . | . . . . . . . Authchips . | . . . . . . . Time . | . . . . . . . Total Robot Build Rating . | . . . . . . . Part Schematics Acquired . | . . . . . . . Parts Built . | . . . . . . . Authchips . | . . . . . . . Time . | . . . . . . . Total Part Build Rating . | . . . . . . . Parts Repaired . | . . . . . . . Time . | . . . . . . . Parts Recycled . | . . . . . . . Recycled Matter . | . . . . . . . Retrieved Matter . | . . . . . . . Retrieved Components . | . . . . . . . Parts Scanalyzed . | . . . . . . . Part Schematics Acquired . | . . . . . . . Parts Damaged . | . . . . . . . Bothacking | -11 -10 -10 -10 -9 -8 -8 ------------ Run | Yrd Mat Min Exi Min Mat Gar Used RIF Installer . | . . . . . . . Robots Hacked . | . . . . . . . Non-combat . | . . . . . . . Combat . | . . . . . . . Robot Hacks Applied . | . . . . . . . Relay Couplers Released 4 | . . . . . . 4 Machine Destruction 4 | . . . . . . 4 Fabnet Peak Effective % . | . . . . . . . Robots Rewired . | . . . . . . . Allies Hacked . | . . . . . . . Hacks Repelled . | . . . . . . . Allies | -11 -10 -10 -10 -9 -8 -8 -------- Run | Yrd Mat Min Exi Min Mat Gar Total Allies . | . . . . . . . Largest Group . | . . . . . . . Highest-Rated Group . | . . . . . . . Highest-Rated Ally . | . . . . . . . Total Orders 13 | . . . 2 1 2 8 ROAM 1 | . . . . . . 1 EXPLORE 10 | . . . 1 1 2 6 RETURN 2 | . . . 1 . . 1 Ally Attacks . | . . . . . . . Total Damage . | . . . . . . . Kills . | . . . . . . . Allies Corrupted . | . . . . . . . Allies Melted . | . . . . . . . Intel | -11 -10 -10 -10 -9 -8 -8 ------- Run | Yrd Mat Min Exi Min Mat Gar Robot Analysis Total 1 | . . . . . 1 . Derelict Logs Recovered 1 | . . . . 1 . . Drone Launches 8 | . . . 1 1 2 4 Drone Recoveries 7 | . . . 1 1 2 3 Exploration | -11 -10 -10 -10 -9 -8 -8 ------------- Run | Yrd Mat Min Exi Min Mat Gar Turns Passed 3187 | 38 468 614 515 237 973 342 Spaces Moved 1618 | 32 309 257 250 158 514 98 Core 184 | 7 . 177 . . . . Treads . | . . . . . . . Legs 357 | . . 80 250 27 . . Wheels 1077 | 25 309 . . 131 514 98 Hover . | . . . . . . . Flight . | . . . . . . . Fastest Speed 50 | 50 80 190 190 95 85 145 Average Speed 150 | 81 89 217 198 123 132 198 Slowest Speed 300 | 90 95 300 260 260 160 230 Overloaded Moves . | . . . . . . . Propulsion Burnouts . | . . . . . . . Robots Hopped . | . . . . . . . Cave-ins Triggered . | . . . . . . . Exploration Rate (%) 65 | 4 51 55 91 93 92 72 Regions Visited 6 Branch Regions 3 Pre-discovered Areas . | . . . . . . . Known Exits Taken 1 | . . . . . 1 . Unknown Exits Taken 5 | 1 1 1 1 1 . . Scrap Searched 3 | . . 1 . 2 . . Spaces Dug . | . . . . . . . Terrain Destroyed 40 | . . 40 . . . . Melee . | . . . . . . . Projectile . | . . . . . . . AOE 40 | . . 40 . . . . Terrain Rammed . | . . . . . . . Walls Destroyed . | . . . . . . . Machines Disabled . | . . . . . . . Actions | -11 -10 -10 -10 -9 -8 -8 --------- Run | Yrd Mat Min Exi Min Mat Gar Total 2175 | 43 411 306 270 195 763 187 Wait 300 | . 26 24 17 17 177 39 Move 1613 | 31 308 256 249 157 514 98 Hop . | . . . . . . . Pick Up 53 | 6 11 8 1 9 17 1 Fast Attach 4 | . . 1 2 1 . . Attach 26 | 6 5 1 . 2 9 3 Detach 3 | . . . . 1 2 . Swap 16 | . 2 2 . 1 8 3 Drop 17 | . . 7 1 2 7 . Fire 101 | . 59 7 . 5 27 3 Melee 29 | . . . . . 2 27 Ram . | . . . . . . . Kick . | . . . . . . . Crush . | . . . . . . . Escape Stasis 13 | . . . . . . 13 Rewire . | . . . . . . . Trap . | . . . . . . . Miscellaneous . | . . . . . . . Route ------- -11/Scrapyard -10/Materials (discovered 2 exits: [*Mat] / *Min) -10/Mines (discovered 2 exits: [*Mat] / *Exi) -10/Exiles (discovered 2 exits: [*Min x2]) -9/Mines (discovered 2 exits: *Mat x2) -8/Materials (discovered 3 exits: [*Fac x2] / Gar) -8/Garrison (discovered 3 exits: [*Mat x3]) History --------- Turn | Location | Event 12 | -11/Scrapyard | Discovered new exit (range 16) 39 | -11/Scrapyard | Entered Materials 317 | -10/Materials | Build established: Mutant 334 | -10/Materials | Discovered new exit (range 10) 378 | -10/Materials | Discovered new exit (range 12) 457 | -10/Materials | Core integrity fell below 50% 507 | -10/Materials | Entered Mines 535 | -10/Mines | Discovered new exit (range 8) 579 | -10/Mines | Received a Rocket Launcher from a helpful Derelict 643 | -10/Mines | A weapon hastily lodged in a ceiling crevice suddenly fell to the ground 770 | -10/Mines | Met a Derelict who couldn't figure out how to use a Trap Extractor 1113 | -10/Mines | Deemed a non-threat by the Exiles lab entrance 1113 | -10/Mines | Discovered new exit (range 5) 1121 | -10/Mines | Entered Exiles 1167 | -10/Exiles | Met 8R-AWN 1199 | -10/Exiles | Met EX-HEX 1256 | -10/Exiles | Met EX-BIN 1279 | -10/Exiles | Aligned with FarCom system 1281 | -10/Exiles | Given EX-Vault access code 1325 | -10/Exiles | Opened EX-Vault 1338 | -10/Exiles | Found Supersonic Drone Bay 1397 | -10/Exiles | Discovered new exit (range 62) 1403 | -10/Exiles | Discovered new exit (range 58) 1440 | -10/Exiles | Warned to stay clear of 0b10 Research branches 1491 | -10/Exiles | Met EX-DEC 1636 | -10/Exiles | Left Exiles lab with Supersonic Drone Bay 1636 | -10/Exiles | Entered Mines 1746 | -9/Mines | Discovered new exit (range 11) 1748 | -9/Mines | Discovered new exit (range 24) 1810 | -9/Mines | Learned Materials stockpile data 1873 | -9/Mines | Entered Materials 1873 | -8/Materials | Evolved 4 slots: Utility x4 1885 | -8/Materials | Discovered new exit (range 107) 1937 | -8/Materials | Discovered new exit (range 65) 2846 | -8/Materials | Identified exit to Garrison 2846 | -8/Materials | Entered Garrison 2854 | -8/Garrison | Discovered new exit (range 88) 2863 | -8/Garrison | Discovered new exit (range 45) 2871 | -8/Garrison | Discovered new exit (range 52) 2886 | -8/Garrison | Triggered checkpoint 2922 | -8/Garrison | Triggered checkpoint 2994 | -8/Garrison | Lost 6 parts (1p2n3u) 3039 | -8/Garrison | Garrison Relay disabled 3188 | -8/Garrison | Self-destructed Last Messages --------------- 03152_ Stasis field depleted. 03152_ Triggered Stasis Trap. 03152_ A bubble of rippling energy engulfs the area. 03152_ Field strength at 90. 03154_ Field strength at 80. 03155_ Field strength at 70. 03156_ Field strength at 60. 03165_ Field strength at 26. 03166_ S-10 Pest destroyed. 03168_ Field strength at 1. 03169_ Stasis field depleted. 03170_ S-10 Pest destroyed. 03174_ Acquired 17 matter. 03176_ S-10 Pest destroyed. 03179_ Acquired 4 matter. Garrison Door activated. 03184_ S-10 Pest destroyed. 03188_ Penetrated by Slug. 03188_ Wheel destroyed. Map ----- +----------------------------------------------------+ | ###### #### #?????????????????# #? | | #?????##?????????????????????## #? | | ############ #????????????????????????????#T #? | | ???????????# #????????????????????????????## #? | | ???????????# #?????????????????????????????# #? | | ???????????# #?????????????????????????????# #? | | ???????????# #?????????????????????????????# #? | | ???????????# #?????????????????????????????# #? | | ???????????# #???????????????g?????????????# #? | | ???????????# #????????##+###""""############ #? | | ???????????# ########## h #? | | ???????????# #? | | ???????????# #? | | ???????????############# ## ## ###########? | | ?????????????????????### ## ## #??????????? | | ?????????????????????# "s?????????? | | ?????????????????????# "s?????????? | | ?????????????????????# "s?????????? | | ????????????###??????# "s?????????? | | ??????????###T#??????### ## ## #??????????? | | ??????????#Y "????????# ##s ## ############ | | ???????????# #????????#[%*s # | | ????????????# #????????+ s% " # | | ############ #????????# %=s "%" # | | #????????##* ## ############# # | | #######"""### #?????????#@ #?????????????????# # | | ?????????g??# #?????????# #?????????????????# # | | ????????????# #?????????# #?????????????????# # | | ????????????# #?????????# #?????????????????# # | | ????????????# #?????????# #?????????????????# # | | ????????????# #?????????# #?????????????????# # | | ?????????#### ########### #?????????????????# # | | ?????????# ^ #?????????????????# # | | ?????????# #?????????????????# # | | ?????????# ########## #####?????????????????# # | | ?????????# #????????# #?????????????????????# # | | ?????????# #????????# #?????????????????????# # | | ?????????# #????????# #?????????????????????# # | | ?????????# #????????# #?????????????????????# # | | ?????????# #????????# #?????????????????????# # | | ?????????# #????????# #?????????????????????# # | | ?????????# #????????# #?????????????????????# # | | ???????? #????????" #?????????????????????# | | ???????# < #????????T #?????????????????????# | | ???????# #????????""#?????????????????????# | | ???????######????????###?????????????????????##### | | ?????????????????????????????????????????????????? | | ?????????????????????????????????????????????????# | | ?????????????????????????????????????????????# | | ?????????????????????????????????????????????# | +----------------------------------------------------+ Best States ------------- Heat Dissipation 31 Energy Generation 14 Energy Capacity 250 Matter Stores 300 Matter Capacity 300 Sight Range 16 Terrain Scan Density 10 Armor Coverage 675 Evasion (%) 44 Particle Charging 15 Offensive Hacking 10 Item Schematics ----------------- None Robot Schematics ------------------ None Fabricated ------------ Nothing Alien Tech Used ----------------- None Achievements -------------- None Challenges ------------ None Game ------ Seed AutogunTacticalScrap Manual? 0 Play Time 00:45:14 Cumulative 105.6 hours Start 2024.03.31 @ 14:40:27 End 2024.03.31 @ 15:30:01 Sessions 1 Manual Loads 0 Difficulty Rogue Special Mode None Game No. 104 Rogue 101 Adventurer 0 Explorer 3 Win Type - Total 0 Types 0/0/0/0/0/0/0/0/0 Lore% 31 Gallery% 47 Achievement% 33 Wizard Run 0 Options --------- Layout 1 ASCII 0 Keyboard 0 Movement Mouse Keybinds 0 Fullscreen 2 Font 48/Terminus Map View 50x35 Zoom Use 0% Tactical HUD 1 Map Filters NONE Filters NONE Steam 1 RUN: 9703578f-b0c5-4719-a25a-2cedeec21356